[Event "*** Titled Tuesday Blitz"]
[Site "Chess.com"]
[Date "2020.05.19"]
[Round "5"]
[White "martabartel"]
[Black "Luibov_AN"]
[Result "1-0"]
[WhiteElo "2315"]
[BlackElo "2075"]
[TimeControl "180+1"]
[EndTime "12:54:10 PDT"]
[Termination "martabartel won by resignation"]

1. d4 {[%clk 0:03:00.9]} 1... g6 {[%clk 0:02:48.8]} 2. c4 {[%clk 0:02:59.4]}
2... Bg7 {[%clk 0:02:47.9]} 3. Nc3 {[%clk 0:02:59.3]} 3... c5 {[%clk 0:02:40.5]}
4. d5 {[%clk 0:02:58.5]} 4... e5 {[%clk 0:02:40.1]} 5. e4 {[%clk 0:02:57.2]}
5... d6 {[%clk 0:02:40.1]} 6. Be2 {[%clk 0:02:53.6]} 6... Nf6 {[%clk 0:02:39.6]}
7. h4 {[%clk 0:02:50]} 7... h6 {[%clk 0:02:38.9]} 8. Be3 {[%clk 0:02:47.7]} 8...
O-O {[%clk 0:02:34.3]} 9. g4 {[%clk 0:02:37.8]} 9... Nh7 {[%clk 0:02:29.9]} 10.
Qd2 {[%clk 0:02:32.6]} 10... g5 {[%clk 0:02:26.9]} 11. hxg5 {[%clk 0:02:26.1]}
11... hxg5 {[%clk 0:02:24.9]} 12. Rh5 {[%clk 0:02:19.9]} 12... f6 {[%clk
0:02:23.1]} 13. O-O-O {[%clk 0:02:18.3]} 13... Re8 {[%clk 0:02:22.2]} 14. Bf3
{[%clk 0:02:08.6]} 14... Nf8 {[%clk 0:02:20.9]} 15. Nge2 {[%clk 0:02:02.4]}
15... a6 {[%clk 0:02:20.5]} 16. Rdh1 {[%clk 0:02:01.9]} 16... Bd7 {[%clk
0:02:19.2]} 17. Ng3 {[%clk 0:02:01.4]} 17... Qa5 {[%clk 0:02:15.9]} 18. Nf5
{[%clk 0:01:55.2]} 18... Bxf5 {[%clk 0:02:15.5]} 19. gxf5 {[%clk 0:01:52.9]}
19... b5 {[%clk 0:02:15.4]} 20. Bxg5 {[%clk 0:01:40.8]} 20... fxg5 {[%clk
0:01:53.5]} 21. Qxg5 {[%clk 0:01:34.3]} 21... Nbd7 {[%clk 0:01:53.3]} 22. Rh6
{[%clk 0:01:20.9]} 22... b4 {[%clk 0:01:48.4]} 23. Rh8+ {[%clk 0:01:04.3]} 23...
Kf7 {[%clk 0:01:48.2]} 24. Bh5+ {[%clk 0:01:04]} 1-0

[Event "*** Titled Tuesday Blitz"]
[Site "Chess.com"]
[Date "2020.05.19"]
[Round "5"]
[White "CMS13"]
[Black "kasparicy"]
[Result "0-1"]
[WhiteElo "2195"]
[BlackElo "2412"]
[TimeControl "180+1"]
[EndTime "12:54:20 PDT"]
[Termination "kasparicy won by checkmate"]

1. e4 {[%clk 0:03:00.9]} 1... c5 {[%clk 0:02:36.7]} 2. Nc3 {[%clk 0:02:59.5]}
2... Nc6 {[%clk 0:02:30.3]} 3. Bb5 {[%clk 0:02:59]} 3... Nd4 {[%clk 0:02:29.5]}
4. Nf3 {[%clk 0:02:58.8]} 4... a6 {[%clk 0:02:26.7]} 5. Bd3 {[%clk 0:02:58.1]}
5... d6 {[%clk 0:02:21.7]} 6. O-O {[%clk 0:02:57.7]} 6... Nf6 {[%clk 0:02:21.4]}
7. Nxd4 {[%clk 0:02:57.2]} 7... cxd4 {[%clk 0:02:21.2]} 8. Ne2 {[%clk
0:02:57.2]} 8... e5 {[%clk 0:02:21.7]} 9. c3 {[%clk 0:02:54.8]} 9... dxc3 {[%clk
0:02:20.7]} 10. bxc3 {[%clk 0:02:54.8]} 10... b5 {[%clk 0:02:21]} 11. Bc2 {[%clk
0:02:54.2]} 11... Bb7 {[%clk 0:02:21.5]} 12. d3 {[%clk 0:02:54.3]} 12... Be7
{[%clk 0:02:21.3]} 13. f4 {[%clk 0:02:54.5]} 13... O-O {[%clk 0:02:18.1]} 14.
Qe1 {[%clk 0:02:54.2]} 14... Rc8 {[%clk 0:02:17.4]} 15. Qg3 {[%clk 0:02:46.3]}
15... exf4 {[%clk 0:02:11.1]} 16. Bxf4 {[%clk 0:02:45.6]} 16... d5 {[%clk
0:02:10.4]} 17. e5 {[%clk 0:02:35.2]} 17... Nh5 {[%clk 0:02:09.7]} 18. Qg4
{[%clk 0:02:34]} 18... Nxf4 {[%clk 0:02:09.4]} 19. Qxf4 {[%clk 0:02:31.8]} 19...
d4 {[%clk 0:02:06.7]} 20. Nxd4 {[%clk 0:02:26.1]} 20... Rxc3 {[%clk 0:02:04.8]}
21. Bb3 {[%clk 0:02:16]} 21... Bc5 {[%clk 0:02:00]} 22. Bxf7+ {[%clk 0:02:11.8]}
22... Kh8 {[%clk 0:01:59.9]} 23. Kh1 {[%clk 0:01:42.2]} 23... Qxd4 {[%clk
0:01:53.9]} 24. Qf5 {[%clk 0:01:30.8]} 24... Rc2 {[%clk 0:01:45.2]} 25. Rf3
{[%clk 0:01:16.6]} 25... Bxf3 {[%clk 0:01:42.4]} 26. gxf3 {[%clk 0:01:13.6]}
26... Qf2 {[%clk 0:01:37.4]} 27. Qh5 {[%clk 0:01:05.4]} 27... Qg2# {[%clk
0:01:36.6]} 0-1

[Event "*** Titled Tuesday Blitz"]
[Site "Chess.com"]
[Date "2020.05.19"]
[Round "5"]
[White "Mbneu"]
[Black "Marty435"]
[Result "0-1"]
[WhiteElo "2231"]
[BlackElo "2411"]
[TimeControl "180+1"]
[EndTime "12:54:27 PDT"]
[Termination "Marty435 won by resignation"]

1. d4 {[%clk 0:03:00.9]} 1... Nf6 {[%clk 0:02:59.6]} 2. c4 {[%clk 0:03:01.2]}
2... c5 {[%clk 0:02:59.5]} 3. d5 {[%clk 0:03:00.6]} 3... e5 {[%clk 0:02:59.8]}
4. g3 {[%clk 0:02:59.1]} 4... d6 {[%clk 0:02:59.8]} 5. Bg2 {[%clk 0:02:58.9]}
5... Be7 {[%clk 0:02:59.9]} 6. e4 {[%clk 0:02:58.7]} 6... O-O {[%clk 0:02:59.8]}
7. Ne2 {[%clk 0:02:59.3]} 7... a6 {[%clk 0:02:48.9]} 8. a4 {[%clk 0:02:56.7]}
8... Ne8 {[%clk 0:02:36.8]} 9. O-O {[%clk 0:02:41.6]} 9... g6 {[%clk 0:02:36.6]}
10. Bh6 {[%clk 0:02:28.9]} 10... Ng7 {[%clk 0:02:35.9]} 11. f4 {[%clk
0:02:29.2]} 11... exf4 {[%clk 0:02:35.2]} 12. gxf4 {[%clk 0:02:27.6]} 12... Bg4
{[%clk 0:02:29.9]} 13. Nd2 {[%clk 0:02:22.9]} 13... Bf6 {[%clk 0:02:28.2]} 14.
Rb1 {[%clk 0:02:12.5]} 14... Re8 {[%clk 0:02:09.7]} 15. Kh1 {[%clk 0:01:48.4]}
15... Nf5 {[%clk 0:02:04.6]} 16. Bg5 {[%clk 0:01:04.5]} 16... Ne3 {[%clk
0:02:00.4]} 17. Bxf6 {[%clk 0:00:37.5]} 17... Qxf6 {[%clk 0:01:56.9]} 18. e5
{[%clk 0:00:37.6]} 18... Nxd1 {[%clk 0:01:50]} 19. exf6 {[%clk 0:00:35.8]} 19...
Bxe2 {[%clk 0:01:49.9]} 20. Rfxd1 {[%clk 0:00:32.2]} 20... Bxd1 {[%clk
0:01:49.8]} 21. Rxd1 {[%clk 0:00:32.7]} 21... Nd7 {[%clk 0:01:50.2]} 0-1

[Event "*** Titled Tuesday Blitz"]
[Site "Chess.com"]
[Date "2020.05.19"]
[Round "5"]
[White "larisakalinina"]
[Black "Torrentec"]
[Result "0-1"]
[WhiteElo "2021"]
[BlackElo "2300"]
[TimeControl "180+1"]
[EndTime "12:54:32 PDT"]
[Termination "Torrentec won by resignation"]

1. e4 {[%clk 0:02:36.9]} 1... e5 {[%clk 0:02:59.6]} 2. Nf3 {[%clk 0:02:35.7]}
2... Nc6 {[%clk 0:02:59.8]} 3. d4 {[%clk 0:02:35.2]} 3... exd4 {[%clk
0:02:59.8]} 4. Nxd4 {[%clk 0:02:35.6]} 4... Bc5 {[%clk 0:03:00.3]} 5. Be3 {[%clk
0:02:34.4]} 5... Qf6 {[%clk 0:02:59.7]} 6. c3 {[%clk 0:02:34.7]} 6... Qg6 {[%clk
0:02:58.8]} 7. Nxc6 {[%clk 0:02:31.1]} 7... Bxe3 {[%clk 0:02:58.3]} 8. fxe3
{[%clk 0:02:28]} 8... dxc6 {[%clk 0:02:45.4]} 9. Qf3 {[%clk 0:02:20.6]} 9... Nf6
{[%clk 0:02:40.3]} 10. e5 {[%clk 0:02:16.6]} 10... Ng4 {[%clk 0:02:39]} 11. Qf4
{[%clk 0:02:09]} 11... Qh5 {[%clk 0:02:15.7]} 12. Be2 {[%clk 0:02:02.7]} 12...
Qxe5 {[%clk 0:02:13.9]} 13. Bxg4 {[%clk 0:01:51.2]} 13... Qxf4 {[%clk
0:02:13.8]} 14. exf4 {[%clk 0:01:51.9]} 14... Bxg4 {[%clk 0:02:13.7]} 15. O-O
{[%clk 0:01:51.7]} 15... O-O-O {[%clk 0:02:13.6]} 16. h3 {[%clk 0:01:40.4]}
16... Bf5 {[%clk 0:02:06.5]} 17. Na3 {[%clk 0:01:38]} 17... Rd2 {[%clk
0:02:04.2]} 18. Nc4 {[%clk 0:01:35.3]} 18... Re2 {[%clk 0:02:01.9]} 19. Rfe1
{[%clk 0:01:21.7]} 19... Rhe8 {[%clk 0:01:59.4]} 20. Rxe2 {[%clk 0:00:56.6]}
20... Rxe2 {[%clk 0:02:00.3]} 21. Kf1 {[%clk 0:00:30]} 21... Bd3 {[%clk
0:01:59.3]} 22. Ne5 {[%clk 0:00:30.1]} 22... Rxe5+ {[%clk 0:01:59]} 23. Kf2
{[%clk 0:00:29.2]} 23... Re2+ {[%clk 0:01:58.8]} 24. Kf3 {[%clk 0:00:29.6]}
24... Rxb2 {[%clk 0:01:58.6]} 0-1

[Event "*** Titled Tuesday Blitz"]
[Site "Chess.com"]
[Date "2020.05.19"]
[Round "5"]
[White "Sibelephant"]
[Black "GMHess"]
[Result "1-0"]
[WhiteElo "3183"]
[BlackElo "2810"]
[TimeControl "180+1"]
[EndTime "12:54:35 PDT"]
[Termination "Sibelephant won by resignation"]

1. d4 {[%clk 0:02:45.9]} 1... Nf6 {[%clk 0:02:58.9]} 2. Nf3 {[%clk 0:02:46.2]}
2... e6 {[%clk 0:02:58.8]} 3. Bg5 {[%clk 0:02:46.4]} 3... h6 {[%clk 0:02:57.5]}
4. Bh4 {[%clk 0:02:46.5]} 4... c5 {[%clk 0:02:56.5]} 5. e3 {[%clk 0:02:46.5]}
5... d5 {[%clk 0:02:53]} 6. c3 {[%clk 0:02:45.9]} 6... Nc6 {[%clk 0:02:52.6]} 7.
Nbd2 {[%clk 0:02:46]} 7... Bd6 {[%clk 0:02:43.8]} 8. Bd3 {[%clk 0:02:46]} 8...
Qb6 {[%clk 0:02:40.9]} 9. Rb1 {[%clk 0:02:43.3]} 9... Bd7 {[%clk 0:02:34.9]} 10.
O-O {[%clk 0:02:40.9]} 10... cxd4 {[%clk 0:02:28.7]} 11. exd4 {[%clk 0:02:40.1]}
11... Nh5 {[%clk 0:02:04.5]} 12. Re1 {[%clk 0:02:39.5]} 12... Nf4 {[%clk
0:02:01.1]} 13. Bc2 {[%clk 0:02:31.8]} 13... g5 {[%clk 0:01:58.3]} 14. Bg3
{[%clk 0:02:31.9]} 14... O-O-O {[%clk 0:01:58.4]} 15. b4 {[%clk 0:02:26]} 15...
f6 {[%clk 0:01:42.3]} 16. c4 {[%clk 0:02:19.4]} 16... Bxb4 {[%clk 0:00:57.3]}
17. a3 {[%clk 0:02:16.1]} 17... Bxd2 {[%clk 0:00:57.2]} 18. Rxb6 {[%clk
0:02:14.1]} 18... Bxe1 {[%clk 0:00:57.4]} 19. Rxc6+ {[%clk 0:02:12.1]} 19...
Bxc6 {[%clk 0:00:52.3]} 20. Qxe1 {[%clk 0:02:12.5]} 20... dxc4 {[%clk
0:00:52.8]} 21. Bxf4 {[%clk 0:02:12.7]} 21... gxf4 {[%clk 0:00:53]} 22. Qxe6+
{[%clk 0:02:13.3]} 22... Kb8 {[%clk 0:00:53.3]} 23. Qxc4 {[%clk 0:02:13.9]}
23... Rc8 {[%clk 0:00:29.1]} 24. d5 {[%clk 0:02:11.2]} 24... Bxd5 {[%clk
0:00:21.9]} 25. Qxd5 {[%clk 0:02:11.3]} 25... Rxc2 {[%clk 0:00:21.8]} 26. Qd6+
{[%clk 0:02:11.1]} 26... Ka8 {[%clk 0:00:22.3]} 27. Qxf4 {[%clk 0:02:10.5]} 1-0

[Event "*** Titled Tuesday Blitz"]
[Site "Chess.com"]
[Date "2020.05.19"]
[Round "5"]
[White "allvim"]
[Black "Leonid_Starozhilov"]
[Result "0-1"]
[WhiteElo "2267"]
[BlackElo "2634"]
[TimeControl "180+1"]
[EndTime "12:54:37 PDT"]
[Termination "Leonid_Starozhilov won by resignation"]

1. e4 {[%clk 0:03:00.9]} 1... g6 {[%clk 0:02:59.3]} 2. d4 {[%clk 0:02:58.8]}
2... Bg7 {[%clk 0:02:59.2]} 3. Nf3 {[%clk 0:02:59.2]} 3... d6 {[%clk 0:02:58.3]}
4. Nc3 {[%clk 0:02:59.6]} 4... Nf6 {[%clk 0:02:56.6]} 5. Bc4 {[%clk 0:02:59.4]}
5... O-O {[%clk 0:02:56.7]} 6. O-O {[%clk 0:02:58.6]} 6... Bg4 {[%clk
0:02:57.1]} 7. h3 {[%clk 0:02:56.8]} 7... Bxf3 {[%clk 0:02:55]} 8. Qxf3 {[%clk
0:02:57.7]} 8... Nc6 {[%clk 0:02:55.9]} 9. Be3 {[%clk 0:02:53.8]} 9... e5 {[%clk
0:02:55.9]} 10. dxe5 {[%clk 0:02:37.8]} 10... dxe5 {[%clk 0:02:55.1]} 11. Qe2
{[%clk 0:02:38.4]} 11... Nd4 {[%clk 0:02:55.1]} 12. Qd3 {[%clk 0:02:15.4]} 12...
Nd7 {[%clk 0:02:44.6]} 13. b4 {[%clk 0:01:13.5]} 13... c6 {[%clk 0:02:24.2]} 14.
Ne2 {[%clk 0:01:11]} 14... a5 {[%clk 0:01:47]} 15. a3 {[%clk 0:01:07.6]} 15...
b5 {[%clk 0:01:45.3]} 16. Ba2 {[%clk 0:00:54.2]} 16... Nb6 {[%clk 0:01:25.6]}
17. c3 {[%clk 0:00:46.7]} 17... Nf3+ {[%clk 0:01:24.8]} 18. gxf3 {[%clk
0:00:42.3]} 18... Qxd3 {[%clk 0:01:25.7]} 19. Bxb6 {[%clk 0:00:42.7]} 0-1

[Event "*** Titled Tuesday Blitz"]
[Site "Chess.com"]
[Date "2020.05.19"]
[Round "5"]
[White "Juanovic"]
[Black "Nellichka"]
[Result "1-0"]
[WhiteElo "2160"]
[BlackElo "1986"]
[TimeControl "180+1"]
[EndTime "12:54:38 PDT"]
[Termination "Juanovic won by resignation"]

1. e4 {[%clk 0:03:00.9]} 1... e6 {[%clk 0:02:56.7]} 2. d4 {[%clk 0:02:58]} 2...
d5 {[%clk 0:02:55.9]} 3. Nc3 {[%clk 0:02:57.3]} 3... Bb4 {[%clk 0:02:54.4]} 4.
e5 {[%clk 0:02:57.7]} 4... c5 {[%clk 0:02:53.4]} 5. a3 {[%clk 0:02:57.8]} 5...
Bxc3+ {[%clk 0:02:52.4]} 6. bxc3 {[%clk 0:02:58.7]} 6... Ne7 {[%clk 0:02:51.2]}
7. a4 {[%clk 0:02:50.1]} 7... Qa5 {[%clk 0:02:47.4]} 8. Qd2 {[%clk 0:02:48.9]}
8... Nbc6 {[%clk 0:02:41.9]} 9. Nf3 {[%clk 0:02:48.8]} 9... Nf5 {[%clk
0:02:38.4]} 10. Bd3 {[%clk 0:02:45.6]} 10... cxd4 {[%clk 0:02:11.9]} 11. Bxf5
{[%clk 0:02:35.3]} 11... dxc3 {[%clk 0:02:10.6]} 12. Qg5 {[%clk 0:02:34.8]}
12... exf5 {[%clk 0:02:05.1]} 13. Qxg7 {[%clk 0:02:34]} 13... Rf8 {[%clk
0:01:54.1]} 14. Ba3 {[%clk 0:02:23.4]} 14... Ne7 {[%clk 0:01:51.6]} 15. Bxe7
{[%clk 0:01:59.3]} 15... Kxe7 {[%clk 0:01:50.1]} 16. Qf6+ {[%clk 0:01:54.1]}
16... Ke8 {[%clk 0:01:46.8]} 17. O-O {[%clk 0:01:47.9]} 17... Be6 {[%clk
0:01:42.6]} 18. Nd4 {[%clk 0:01:43.4]} 18... Qd8 {[%clk 0:01:35.1]} 19. Qg7
{[%clk 0:01:25.7]} 19... Qe7 {[%clk 0:01:28.2]} 20. Rab1 {[%clk 0:01:18.8]}
20... Kd7 {[%clk 0:01:07.4]} 21. Rxb7+ {[%clk 0:01:17]} 1-0

[Event "*** Titled Tuesday Blitz"]
[Site "Chess.com"]
[Date "2020.05.19"]
[Round "5"]
[White "Pittiplatsh"]
[Black "ElGasanov"]
[Result "0-1"]
[WhiteElo "2546"]
[BlackElo "2748"]
[TimeControl "180+1"]
[EndTime "12:54:39 PDT"]
[Termination "ElGasanov won by resignation"]

1. e4 {[%clk 0:03:00.9]} 1... e5 {[%clk 0:02:56.6]} 2. Nf3 {[%clk 0:03:00.8]}
2... Nc6 {[%clk 0:02:56.1]} 3. d4 {[%clk 0:03:00.9]} 3... exd4 {[%clk
0:02:55.5]} 4. Nxd4 {[%clk 0:03:01.8]} 4... Bb4+ {[%clk 0:02:54.8]} 5. c3 {[%clk
0:03:01.3]} 5... Bc5 {[%clk 0:02:55.2]} 6. Be3 {[%clk 0:03:01]} 6... Bb6 {[%clk
0:02:55.6]} 7. Nf5 {[%clk 0:03:00.5]} 7... g6 {[%clk 0:02:50.5]} 8. Bxb6 {[%clk
0:02:59.2]} 8... axb6 {[%clk 0:02:51.4]} 9. Ne3 {[%clk 0:02:59.5]} 9... Nf6
{[%clk 0:02:50.4]} 10. f3 {[%clk 0:02:57.6]} 10... Qe7 {[%clk 0:02:50]} 11. c4
{[%clk 0:02:57.2]} 11... Qc5 {[%clk 0:02:48.4]} 12. Qd2 {[%clk 0:02:52]} 12...
Nd4 {[%clk 0:02:48.8]} 13. Nc3 {[%clk 0:02:48]} 13... Nb3 {[%clk 0:02:46.2]} 14.
axb3 {[%clk 0:02:34.4]} 14... Rxa1+ {[%clk 0:02:46.5]} 15. Kf2 {[%clk
0:02:34.3]} 15... O-O {[%clk 0:02:14.1]} 16. Na4 {[%clk 0:02:06.2]} 16... Qe5
{[%clk 0:02:00.8]} 17. Nc2 {[%clk 0:01:59.2]} 17... Rb1 {[%clk 0:01:49.5]} 18.
Na3 {[%clk 0:01:57.8]} 18... Ra1 {[%clk 0:01:44.5]} 19. Nc2 {[%clk 0:01:57.7]}
19... Ra2 {[%clk 0:01:40.2]} 20. Nb4 {[%clk 0:01:53.3]} 20... Qa5 {[%clk
0:01:29.3]} 21. Qc3 {[%clk 0:01:44.7]} 21... Ra1 {[%clk 0:01:27.1]} 22. Qxf6
{[%clk 0:00:59]} 22... Qxb4 {[%clk 0:01:26.2]} 23. h4 {[%clk 0:00:59.2]} 23...
Qe1+ {[%clk 0:01:23.6]} 24. Kg1 {[%clk 0:00:58.4]} 24... Qxf1+ {[%clk
0:01:23.6]} 0-1

[Event "*** Titled Tuesday Blitz"]
[Site "Chess.com"]
[Date "2020.05.19"]
[Round "5"]
[White "grunbergmihai"]
[Black "AliKa2810"]
[Result "0-1"]
[WhiteElo "2408"]
[BlackElo "2630"]
[TimeControl "180+1"]
[EndTime "12:54:39 PDT"]
[Termination "AliKa2810 won by resignation"]

1. Nf3 {[%clk 0:02:54.3]} 1... d5 {[%clk 0:02:59.1]} 2. c4 {[%clk 0:02:54]} 2...
d4 {[%clk 0:02:58.9]} 3. g3 {[%clk 0:02:54.2]} 3... c5 {[%clk 0:02:58.4]} 4. Bg2
{[%clk 0:02:54.3]} 4... Nc6 {[%clk 0:02:58.6]} 5. d3 {[%clk 0:02:54.5]} 5... Nf6
{[%clk 0:02:54.3]} 6. O-O {[%clk 0:02:55.4]} 6... e5 {[%clk 0:02:54.2]} 7. e3
{[%clk 0:02:56.3]} 7... Be7 {[%clk 0:02:52.8]} 8. a3 {[%clk 0:02:55.4]} 8... O-O
{[%clk 0:02:51.7]} 9. exd4 {[%clk 0:02:55.3]} 9... exd4 {[%clk 0:02:52]} 10. Re1
{[%clk 0:02:55.1]} 10... h6 {[%clk 0:02:51.6]} 11. Bf4 {[%clk 0:02:54]} 11... g5
{[%clk 0:02:51.4]} 12. Bd2 {[%clk 0:02:46.3]} 12... Bf5 {[%clk 0:02:44.6]} 13.
Qc2 {[%clk 0:02:45.2]} 13... Qd7 {[%clk 0:02:19.1]} 14. h4 {[%clk 0:02:42.3]}
14... Nh7 {[%clk 0:02:12.4]} 15. hxg5 {[%clk 0:02:39.5]} 15... hxg5 {[%clk
0:02:13.3]} 16. Ne5 {[%clk 0:02:30.1]} 16... Nxe5 {[%clk 0:02:12.3]} 17. Rxe5
{[%clk 0:02:29.6]} 17... Bd6 {[%clk 0:02:10.7]} 18. Re1 {[%clk 0:02:26.7]} 18...
Rae8 {[%clk 0:02:09]} 19. b4 {[%clk 0:02:22.9]} 19... b6 {[%clk 0:02:05]} 20. b5
{[%clk 0:02:18.3]} 20... Kg7 {[%clk 0:01:57.5]} 21. Rxe8 {[%clk 0:02:15.4]}
21... Qxe8 {[%clk 0:01:56.5]} 22. Bf1 {[%clk 0:02:04]} 22... Rh8 {[%clk
0:01:48.2]} 23. Qc1 {[%clk 0:01:54.5]} 23... f6 {[%clk 0:01:30.8]} 24. Qe1
{[%clk 0:01:34.2]} 24... Qh5 {[%clk 0:01:30.7]} 25. Be2 {[%clk 0:01:17.6]} 25...
g4 {[%clk 0:01:30.2]} 26. Qf1 {[%clk 0:01:06]} 26... Ng5 {[%clk 0:01:29.3]} 27.
Qg2 {[%clk 0:01:05.9]} 27... Nf3+ {[%clk 0:01:29.4]} 0-1

[Event "*** Titled Tuesday Blitz"]
[Site "Chess.com"]
[Date "2020.05.19"]
[Round "5"]
[White "yuki_chess123"]
[Black "AsaHoffmann"]
[Result "0-1"]
[WhiteElo "2145"]
[BlackElo "2396"]
[TimeControl "180+1"]
[EndTime "12:54:41 PDT"]
[Termination "AsaHoffmann won by resignation"]

1. c4 {[%clk 0:03:00.9]} 1... Nf6 {[%clk 0:02:43.3]} 2. Nc3 {[%clk 0:03:00.6]}
2... d6 {[%clk 0:02:40.2]} 3. Nf3 {[%clk 0:02:59.8]} 3... e5 {[%clk 0:02:39.3]}
4. d3 {[%clk 0:02:59.3]} 4... c6 {[%clk 0:02:36.8]} 5. g3 {[%clk 0:02:58.9]}
5... h6 {[%clk 0:02:33.5]} 6. Bg2 {[%clk 0:02:59.1]} 6... Be6 {[%clk 0:02:33.1]}
7. Rb1 {[%clk 0:02:59.4]} 7... Qd7 {[%clk 0:02:32.7]} 8. b4 {[%clk 0:02:59.4]}
8... Be7 {[%clk 0:02:31.6]} 9. b5 {[%clk 0:02:59.3]} 9... O-O {[%clk 0:02:31.1]}
10. O-O {[%clk 0:02:50.5]} 10... Bh3 {[%clk 0:02:29.6]} 11. bxc6 {[%clk
0:02:50.6]} 11... bxc6 {[%clk 0:02:28.1]} 12. Qa4 {[%clk 0:02:49.9]} 12... Bxg2
{[%clk 0:02:27.2]} 13. Kxg2 {[%clk 0:02:49.7]} 13... a5 {[%clk 0:02:19.2]} 14.
Qb3 {[%clk 0:02:43.8]} 14... Na6 {[%clk 0:02:17.5]} 15. Na4 {[%clk 0:02:36.5]}
15... Rfb8 {[%clk 0:02:14.2]} 16. Nb6 {[%clk 0:01:54.1]} 16... Qe8 {[%clk
0:01:59.2]} 17. Bd2 {[%clk 0:01:35.5]} 17... Nc5 {[%clk 0:01:56.5]} 18. Qd1
{[%clk 0:01:29.9]} 18... Ra7 {[%clk 0:01:48.2]} 19. Qc2 {[%clk 0:01:11]} 19...
Rab7 {[%clk 0:01:25.7]} 20. Bxa5 {[%clk 0:01:07.1]} 20... Bd8 {[%clk 0:01:24.7]}
0-1

[Event "*** Titled Tuesday Blitz"]
[Site "Chess.com"]
[Date "2020.05.19"]
[Round "5"]
[White "SlavenPastar"]
[Black "AndrewMaco"]
[Result "1-0"]
[WhiteElo "2399"]
[BlackElo "2534"]
[TimeControl "180+1"]
[EndTime "12:54:43 PDT"]
[Termination "SlavenPastar won by checkmate"]

1. d4 {[%clk 0:03:00.9]} 1... Nf6 {[%clk 0:02:58.2]} 2. c4 {[%clk 0:03:01.3]}
2... e6 {[%clk 0:02:58.3]} 3. Nc3 {[%clk 0:03:01.7]} 3... Bb4 {[%clk 0:02:58.9]}
4. e3 {[%clk 0:03:02.2]} 4... O-O {[%clk 0:02:58.8]} 5. Bd3 {[%clk 0:03:02.7]}
5... d5 {[%clk 0:02:59.1]} 6. cxd5 {[%clk 0:03:03.6]} 6... exd5 {[%clk 0:03:00]}
7. Bd2 {[%clk 0:03:03.7]} 7... Re8 {[%clk 0:02:58.4]} 8. Rc1 {[%clk 0:03:02.4]}
8... c6 {[%clk 0:02:54]} 9. Nge2 {[%clk 0:03:02.4]} 9... a5 {[%clk 0:02:52.6]}
10. O-O {[%clk 0:03:02.1]} 10... Bd6 {[%clk 0:02:53.1]} 11. f3 {[%clk
0:03:01.8]} 11... c5 {[%clk 0:02:51.9]} 12. Nb5 {[%clk 0:02:47.6]} 12... c4
{[%clk 0:02:52]} 13. Nxd6 {[%clk 0:02:41.5]} 13... Qxd6 {[%clk 0:02:52.9]} 14.
Bb1 {[%clk 0:02:39.2]} 14... Nc6 {[%clk 0:02:53.4]} 15. Qe1 {[%clk 0:02:31.5]}
15... b5 {[%clk 0:02:53.5]} 16. Qf2 {[%clk 0:02:31.7]} 16... b4 {[%clk
0:02:53.6]} 17. e4 {[%clk 0:02:26]} 17... Nd7 {[%clk 0:02:18.2]} 18. e5 {[%clk
0:02:18.6]} 18... Qc7 {[%clk 0:02:17.7]} 19. f4 {[%clk 0:02:13.6]} 19... Nf8
{[%clk 0:02:15.6]} 20. f5 {[%clk 0:02:12.5]} 20... a4 {[%clk 0:02:13]} 21. f6
{[%clk 0:02:08.7]} 21... a3 {[%clk 0:02:09.6]} 22. bxa3 {[%clk 0:01:49.8]} 22...
Rxa3 {[%clk 0:02:05.2]} 23. Nf4 {[%clk 0:01:36.1]} 23... c3 {[%clk 0:01:56.5]}
24. Be3 {[%clk 0:01:22.3]} 24... Ba6 {[%clk 0:01:24.1]} 25. fxg7 {[%clk
0:01:14]} 25... Ng6 {[%clk 0:01:17.2]} 26. Nxd5 {[%clk 0:01:11.8]} 26... Qd8
{[%clk 0:01:13.8]} 27. Qxf7# {[%clk 0:01:09.1]} 1-0

[Event "*** Titled Tuesday Blitz"]
[Site "Chess.com"]
[Date "2020.05.19"]
[Round "5"]
[White "oykuince"]
[Black "Belka1989"]
[Result "1-0"]
[WhiteElo "1995"]
[BlackElo "2130"]
[TimeControl "180+1"]
[EndTime "12:54:43 PDT"]
[Termination "oykuince won on time"]

1. e4 {[%clk 0:02:53.1]} 1... e5 {[%clk 0:02:43.9]} 2. Nc3 {[%clk 0:02:48.3]}
2... Nc6 {[%clk 0:02:38]} 3. g3 {[%clk 0:02:48]} 3... Nf6 {[%clk 0:02:35.2]} 4.
Bg2 {[%clk 0:02:48]} 4... Bc5 {[%clk 0:02:35.8]} 5. Nge2 {[%clk 0:02:47.8]} 5...
d6 {[%clk 0:02:36.5]} 6. O-O {[%clk 0:02:48.1]} 6... Bg4 {[%clk 0:02:33.9]} 7.
h3 {[%clk 0:02:47.7]} 7... Be6 {[%clk 0:02:31.8]} 8. Nd5 {[%clk 0:02:46.9]} 8...
Qd7 {[%clk 0:02:22.5]} 9. Kh2 {[%clk 0:02:45.5]} 9... O-O-O {[%clk 0:02:09.3]}
10. c3 {[%clk 0:02:33.8]} 10... Ne7 {[%clk 0:01:49]} 11. Nxf6 {[%clk 0:02:30.6]}
11... gxf6 {[%clk 0:01:49.9]} 12. d4 {[%clk 0:02:31.1]} 12... Bb6 {[%clk
0:00:49.4]} 13. a4 {[%clk 0:02:26.4]} 13... exd4 {[%clk 0:00:35.5]} 14. cxd4
{[%clk 0:02:25.1]} 14... Ba5 {[%clk 0:00:18.3]} 15. d5 {[%clk 0:02:24.9]} 15...
Bxd5 {[%clk 0:00:15.5]} 16. exd5 {[%clk 0:02:24.8]} 16... h5 {[%clk 0:00:14.5]}
17. Bd2 {[%clk 0:02:23.6]} 17... Bxd2 {[%clk 0:00:11.6]} 18. Qxd2 {[%clk
0:02:24.5]} 18... Ng6 {[%clk 0:00:11]} 19. h4 {[%clk 0:02:17.5]} 19... Ne5
{[%clk 0:00:09.2]} 20. Bh3 {[%clk 0:02:16.8]} 20... Ng4+ {[%clk 0:00:06.5]} 21.
Bxg4 {[%clk 0:02:17]} 21... hxg4 {[%clk 0:00:06.3]} 22. Kg2 {[%clk 0:02:15.5]}
22... Qf5 {[%clk 0:00:04.2]} 23. Qe3 {[%clk 0:02:14.1]} 1-0